Cogmind - Beta 12 @@@ ROGUE MODE // 2023.11.26 @ 03:05:53 Player: DreamAR Result: Destroyed by H-77 Assassin with Coil Gun Performance ------------- Evolutions (6) 3000 Regions Visited (17) 3400 Robots Destroyed (130) 650 Value Destroyed (7598) 7598 Prototype IDs (49) 980 Alien Tech Used (0) 0 Bonus (7360) 7360 TOTAL SCORE: 22988 Bonus ------- Triggered High Security 500 High Alert Combat Kills 1152 Follower Combat Kills 3795 Entered Garrisons 800 Used RIF Installer 2000 Entered DSFs 500 Aligned with FarCom 300 Friendly Fire -1687 Cogmind --------- Core Integrity 0/1150 Matter 251/300 Energy 100/100 System Corruption 9% Temperature Cool (27) Movement Core (50) Location -4/Factory Parts ------- > --- POWER (2) -------- (None) > --- PROPULSION (3) --- (None) > --- UTILITY (11) ----- Trap Scanner Advanced Visual Processing Unit Relay Coupler [Duelist] (39) Relay Coupler [Sentry] (31) Relay Coupler [Demolisher] (31) > --- WEAPON (3) ------- (None) > --- INVENTORY (5) ---- Antimatter Reactor Light Antimatter Reactor Relay Coupler [Specialist] (32) Advanced Datajack Axe Peak State ------------ > --- POWER ------------ Antimatter Reactor Light Antimatter Reactor > --- PROPULSION ------- Advanced Medium Treads Advanced Heavy Siege Treads > --- UTILITY ---------- Large Storage Unit Active Sensor Suite Improved Medium Armor Plating Improved Remote Shield Hacking Suite Advanced Hacking Suite Relay Coupler [Hunter] > --- WEAPON ----------- Smartbomb Launcher Axe > --- INVENTORY -------- Neutrino Core Antimatter Reactor Heavy Treads Relay Coupler [Brawler] Relay Coupler [Duelist] Relay Coupler [Demolisher] Relay Coupler [Specialist] Relay Coupler [Hunter] Relay Coupler [Hunter] Improved Arc Projector Improved Arc Projector Proton Missile Launcher Advanced Datajack Improved Remote Datajack [Rating: 115] Favorites ----------- Power Light Antimatter Reactor Engine Ion Engine Power Core Neutrino Core Reactor Light Antimatter Reactor Propulsion Light Treads Treads Light Treads Flight Unit Cesium-ion Thruster Utility Large Storage Unit Device Trap Scanner Storage Large Storage Unit Processor Advanced Targeting Computer Hackware Advanced Hacking Suite Protection Improved Medium Armor Plating Weapon Improved Remote Datajack Energy Gun Improved Arc Projector Ballistic Gun Enhanced Autogun Ballistic Cannon Improved Light Cannon Launcher Smartbomb Launcher Special Weapon Improved Remote Datajack Slashing Weapon Axe Special Melee Weapon Improved Datajack Build | -11 -10 -10 -10 -9 -8 -8 -7 -7 -6 -6 -5 -5 -5 -5 -5 -5 -4 ------- Run | Jun Mat Min Exi Min Mat Gar Fac Gar Fac DSF Fac Was Fac Gar Fac Gar Fac Slots Evolved 12 | . . . . . 4 . 2 . 2 . 2 . . . . . 2 Power 1 | . . . . . . . 1 . . . . . . . . . . Propulsion 1 | . . . . . . . . . 1 . . . . . . . . Utility 9 | . . . . . 4 . 1 . 1 . 1 . . . . . 2 Weapon 1 | . . . . . . . . . . . 1 . . . . . . Parts Attached 273 | 9 29 2 2 . 25 36 8 42 2 5 3 1 12 42 2 30 23 Power 17 | 1 3 . . . 1 2 1 6 . . 1 1 . . . . 1 Engine 9 | 1 3 . . . 1 1 . 3 . . . . . . . . . Core 5 | . . . . . . 1 1 2 . . 1 . . . . . . Reactor 3 | . . . . . . . . 1 . . . 1 . . . . 1 Propulsion 22 | 2 8 . . . 1 4 . . 1 . . . 1 1 . . 4 Treads 20 | 2 8 . . . 1 4 . . 1 . . . 1 1 . . 2 Leg . | . . . . . . . . . . . . . . . . . . Wheel . | . . . . . . . . . . . . . . . . . . Hover . | . . . . . . . . . . . . . . . . . . Flight 2 | . . . . . . . . . . . . . . . . . 2 Utility 112 | 3 4 2 . . 8 15 4 18 1 2 1 . 6 19 1 16 12 Device 40 | 2 1 1 . . 5 5 1 9 1 . . . 2 7 . 4 2 Storage 13 | 1 1 . . . . . . . . . . . 2 4 1 3 1 Processor 3 | . . . . . 2 . . . . . . . . . . . 1 Hackware 46 | . . . . . . 7 3 8 . 1 1 . 2 8 . 9 7 Protection 10 | . 2 1 . . 1 3 . 1 . 1 . . . . . . 1 Artifact . | . . . . . . . . . . . . . . . . . . Weapon 122 | 3 14 . 2 . 15 15 3 18 . 3 1 . 5 22 1 14 6 Energy Gun 15 | 2 6 . . . 1 . . . . . . . . 2 . 1 3 Energy Cannon . | . . . . . . . . . . . . . . . . . . Ballistic Gun 28 | 1 6 . . . 7 6 2 5 . 1 . . . . . . . Ballistic Cannon 5 | . 2 . 1 . . . . . . 1 . . 1 . . . . Launcher 13 | . . . . . 4 1 1 5 . . 1 . . . 1 . . Special Weapon 22 | . . . . . . 1 . 4 . 1 . . 2 6 . 6 2 Impact Weapon . | . . . . . . . . . . . . . . . . . . Slashing Weapon 27 | . . . . . 3 2 . 4 . . . . 2 9 . 6 1 Piercing Weapon . | . . . . . . . . . . . . . . . . . . Special Melee Weapon 12 | . . . 1 . . 5 . . . . . . . 5 . 1 . Unidentified Prototypes 4 | . . 1 . . 1 . . . . . . . 1 1 . . . Parts Lost 24 | . 1 . . . . 1 . 1 . . . . . 2 . 1 18 Power 1 | . . . . . . . . . . . . . . . . . 1 Propulsion 3 | . . . . . . . . . . . . . . . . . 3 Utility 14 | . . . . . . 1 . 1 . . . . . 2 . 1 9 Weapon 6 | . 1 . . . . . . . . . . . . . . . 5 Highest Loss Streak 14 | . 1 . . . . 1 . 1 . . . . . 2 . 1 14 To Critical Strikes 2 | . . . . . . . . . . . . . . 1 . . 1 Average Slot Usage (%) 92 | . 98 100 100 100 97 99 91 91 91 93 85 88 87 87 92 87 84 Engine 4 | . 13 14 14 14 9 8 . 6 6 6 3 . . . . . . Core 1 | . . . . . . . 15 6 . . 1 . . . . . . Reactor 5 | . . . . . . . . 1 6 6 5 10 11 11 11 11 9 Treads 14 | . 27 28 28 28 18 17 7 7 13 13 11 11 11 11 11 11 9 Device 14 | . 5 . . . 24 23 14 18 18 20 17 17 14 15 17 10 14 Storage 9 | . 14 14 14 14 9 9 7 7 6 6 5 5 5 9 11 8 9 Processor 3 | . . . . . 9 9 7 7 6 6 5 5 5 . . . 1 Hackware 12 | . . . . . . 3 15 12 13 15 14 17 19 17 17 30 21 Protection 6 | . 8 14 14 14 9 9 7 5 6 3 5 5 5 5 4 . 2 Energy Gun 1 | . 11 . . . 2 . . . . . . . . 1 4 . 4 Ballistic Gun 3 | . 9 . . . 9 11 . 4 . 2 . . . . . . . Ballistic Cannon 2 | . 6 28 18 28 2 . . . . 4 . . . . . . . Launcher 2 | . . . . . 2 . 3 . . . 5 5 5 4 . 5 2 Special Weapon 2 | . . . . . . . 6 5 6 3 5 5 3 2 5 2 3 Slashing Weapon 1 | . . . . . . 1 3 3 6 1 . . . 1 4 1 1 Naked Turns . | . . . . . . . . . . . . . . . . . . Heaviest Build 94 | 15 40 40 40 40 43 59 64 77 74 85 84 86 94 85 84 78 82 Greatest Support 110 | 40 40 40 40 40 46 76 70 70 100 100 100 100 110 110 110 110 110 Greatest Overweight (x) 3 | 3 3 . . . . . . 1 . . . . . . . . . Average Overweight (x) . | . . . . . . . . . . . . . . . . . . Largest Inventory Capacity 15 | 8 15 15 15 15 15 15 15 15 15 15 15 15 15 15 15 15 15 Average Capacity 14 | 7 11 15 15 15 15 15 15 15 15 15 15 15 15 15 15 15 15 Most Carried 15 | 7 15 15 15 15 15 15 15 15 14 15 15 15 15 15 15 15 15 Average Carried 13 | 5 9 14 14 14 14 14 14 14 13 14 14 14 13 13 14 14 13 Final Capacity 15 | 8 15 15 15 15 15 15 15 15 15 15 15 15 15 15 15 15 5 Final Carried 15 | 7 14 15 15 15 15 15 13 15 13 15 15 15 13 15 15 15 5 Class Distribution -------------------- 45% | Bothacker-Mutant 15% | Mutant 14% | Scavenger-Mutant 12% | Botlord-Mutant 11% | Commander-Mutant Dominant Class ---------------- Mutant | -10/Materials Mutant | -10/Mines Scavenger-Mutant | -10/Exiles Mutant | -9/Mines Scavenger-Mutant | -8/Materials Bothacker-Mutant | -8/Garrison Bothacker-Mutant | -7/Factory Bothacker-Mutant | -7/Garrison Bothacker-Mutant | -6/Factory Bothacker-Mutant | -6/DSF Bothacker-Mutant | -5/Factory Bothacker-Mutant | -5/Waste Bothacker-Mutant | -5/Factory Commander-Mutant | -5/Garrison Bothacker-Mutant | -5/Factory Botlord-Mutant | -5/Garrison Botlord-Mutant | -4/Factory Resources | -11 -10 -10 -10 -9 -8 -8 -7 -7 -6 -6 -5 -5 -5 -5 -5 -5 -4 ----------- Run | Jun Mat Min Exi Min Mat Gar Fac Gar Fac DSF Fac Was Fac Gar Fac Gar Fac Matter Collected 5362 | 292 353 28 . 40 442 698 229 931 . 135 30 10 144 1003 161 522 344 Remotely 19 | 19 . . . . . . . . . . . . . . . . . Salvage Created 3706 | 138 793 62 . . 664 315 192 388 . 57 . . 117 454 211 24 291 Parts 254 | 6 40 2 . . 60 22 20 30 . 7 . . 10 23 12 . 22 Haulers Intercepted 4 | . 2 . . . 1 . 1 . . . . . . . . . . Recyclers Shooed 3 | . 2 . . . . . . . . . . . . . . . 1 Parts Field Recycled . | . . . . . . . . . . . . . . . . . . Retrieved Matter . | . . . . . . . . . . . . . . . . . . Parts Self-Destructed . | . . . . . . . . . . . . . . . . . . Prevented . | . . . . . . . . . . . . . . . . . . Kills | -11 -10 -10 -10 -9 -8 -8 -7 -7 -6 -6 -5 -5 -5 -5 -5 -5 -4 ------- Run | Jun Mat Min Exi Min Mat Gar Fac Gar Fac DSF Fac Was Fac Gar Fac Gar Fac Combat Hostiles Destroyed 78 | . 14 . . . 10 12 9 11 . 1 . . . 13 4 1 3 Melee 2 | . . . . . . 1 . . . . . . . . . . 1 Guns 30 | . 11 . . . 4 9 . 5 . . . . . . . . 1 Cannons 4 | . 3 . . . . . . . . 1 . . . . . . . AOE 42 | . . . . . 6 2 9 6 . . . . . 13 4 1 1 Classes Destroyed 18 | 2 6 . . . 3 1 . 1 . 1 . . . 1 2 . 1 Worker 13 | . 2 1 . . 5 . 3 . . . . . . . . . 2 Builder 11 | . . . . . 5 . . . . . . . 3 . 1 . 2 Tunneler 2 | 2 . . . . . . . . . . . . . . . . . Hauler 4 | . 2 . . . 1 . 1 . . . . . . . . . . Recycler 8 | 1 3 1 . . 2 . . . . . . . 1 . . . . Mechanic 1 | . . . . . . . . . . . . . . . 1 . . Operator 2 | . 1 . . . . . . . . . . . . . . . 1 Watcher 4 | . 2 . . . 1 . 1 . . . . . . . . . . Swarmer 30 | . 6 . . . . 5 9 6 . . . . . 4 . . . Saboteur 3 | . . . . . . . . . . . . . . 2 . . 1 Grunt 33 | . 8 . . . 6 3 . 5 . . . . . 7 3 1 . Brawler 1 | . . . . . . . . 1 . . . . . . . . . Duelist 1 | . . . . . . 1 . . . . . . . . . . . Sentry 7 | . . . . . 3 3 . 1 . . . . . . . . . Specialist 1 | . . . . . . . . . . 1 . . . . . . . Hunter 6 | . . . . . 2 . . . . . . . . 2 . . 2 Programmer 1 | . . . . . . . . . . . . . . . 1 . . Heavy 1 | . . . . . . . . . . . . . . . . . 1 Infiltrator 1 | . . . . . . . . . . . . . . 1 . . . Best Kill Streak 7 | 2 4 1 . . 7 3 6 4 . 1 . . 4 4 4 1 3 Combat Bots Only 4 | . 4 . . . 3 3 4 4 . 1 . . . 4 3 1 1 Max Kills in Single Turn 5 | 1 2 1 . . 5 2 3 4 . 1 . . 2 4 3 1 3 Gunslinging 1 | . 1 . . . . . . . . . . . . . . . . Exploded 4 | . . . . . 2 1 3 3 . . . . . 4 3 1 1 Melee 1 | . . . . . . 1 . . . . . . . . . . 1 Uniques/NPCs Destroyed . | . . . . . . . . . . . . . . . . . . Combat | -11 -10 -10 -10 -9 -8 -8 -7 -7 -6 -6 -5 -5 -5 -5 -5 -5 -4 -------- Run | Jun Mat Min Exi Min Mat Gar Fac Gar Fac DSF Fac Was Fac Gar Fac Gar Fac Damage Taken 6074 | . 460 . . . 226 357 223 830 . 9 . . 97 234 206 265 3167 Core 1344 | . 25 . . . . 42 31 58 . . . . . . 26 . 1162 Absorbed by Shields 650 | . . . . . . 142 56 198 . 3 . . 31 67 62 81 10 Reduced by Siege Mode 151 | . . . . . . . . . . . . . . . . . 151 Regen/Repaired (Parts) 480 | . . . . . . . . . . . . . 480 . . . . Core Remaining (%) 94 | 100 . . . 90 . 92 . 87 . 100 . . . . . 97 . Volleys Fired 386 | 4 67 3 . . 47 31 15 65 . 8 . . 15 46 10 31 44 Largest 2 | 2 2 2 . . 2 2 2 2 . 2 . . 1 2 1 1 2 Hottest 130 | 70 90 78 . . 102 55 53 69 . 101 . . 66 130 65 65 130 Shots Fired 546 | 8 133 6 . . 71 57 16 76 . 9 . . 15 50 10 31 64 Gun 321 | 8 119 . . . 50 53 2 32 . 1 . . . 8 3 4 41 Cannon 29 | . 14 6 . . 4 . . . . 4 . . 1 . . . . Launcher 75 | . . . . . 17 4 7 10 . . . . 4 17 7 4 5 Special 121 | . . . . . . . 7 34 . 4 . . 10 25 . 23 18 Kinetic 203 | 4 56 6 . . 44 53 2 32 . 5 . . 1 . . . . Thermal 91 | 4 77 . . . 10 . . . . . . . . . . . . Explosive 72 | . . . . . 17 4 7 7 . . . . 4 17 7 4 5 Electromagnetic 59 | . . . . . . . . 3 . . . . . 8 3 4 41 Robot Hit Streak 18 | 3 12 8 . . 10 11 12 15 . 7 . . 5 17 18 10 16 Robot Miss Streak 5 | 1 5 . . . 3 3 . 2 . 2 . . 2 1 2 1 3 Penetration Max 1 | . . . . . . . . 1 . . . . . . . . . Secondary Targets 1 | . 1 . . . . . . . . . . . . . . . . Max Gunslinging Chain 1 | . 1 . . . . . . . . . . . . . . . . Shots Hit Robots 386 | 4 74 5 5 . 42 67 9 60 . 6 . . 9 33 8 21 43 Core Hits 236 | 4 36 2 . . 41 18 26 25 . 1 . . 7 41 13 6 16 Critical Kills 1 | . . . . . . . . . . 1 . . . . . . . Critical Parts Destroyed 2 | . . . . . . . . 1 . . . . 1 . . . . Critical Strikes 4 | . 1 . . . . . . 1 . 1 . . 1 . . . . Burn 1 | . 1 . . . . . . . . . . . . . . . . Destroy 3 | . . . . . . . . 1 . 1 . . 1 . . . . Melee Attacks 141 | . . . 5 . 7 40 . 23 . . . . 6 39 4 15 2 Impact . | . . . . . . . . . . . . . . . . . . Slashing 99 | . . . . . 7 6 . 23 . . . . 6 36 4 15 2 Piercing . | . . . . . . . . . . . . . . . . . . Sneak Attacks 23 | . . . 5 . . 16 . . . . . . . 1 1 . . Combat Hostiles 5 | . . . . . . 5 . . . . . . . . . . . Follow-up Attacks . | . . . . . . . . . . . . . . . . . . Damage Inflicted 12242 | 52 1078 94 . . 1738 822 1168 1423 . 38 . . 454 2838 1044 480 1013 Guns 2794 | 52 846 . . . 358 534 36 444 . . . . . 69 20 37 398 Cannons 277 | . 85 94 . . 47 . . . . 38 . . 13 . . . . Explosions 8998 | . 147 . . . 1333 287 1132 917 . . . . 441 2769 954 413 605 Melee 162 | . . . . . . . . 62 . . . . . . 70 30 . Ramming 11 | . . . . . . 1 . . . . . . . . . . 10 Kinetic 1879 | 28 369 94 . . 323 534 36 444 . 38 . . 13 . . . . Thermal 815 | 24 709 . . . 82 . . . . . . . . . . . . Explosive 8712 | . . . . . 1333 287 1132 778 . . . . 441 2769 954 413 605 Electromagnetic 663 | . . . . . . . . 139 . . . . . 69 20 37 398 Impact . | . . . . . . . . . . . . . . . . . . Slashing 162 | . . . . . . . . 62 . . . . . . 70 30 . Piercing . | . . . . . . . . . . . . . . . . . . Highest Corruption 9 | . . . . . . . . 1 . . . . 1 1 1 1 9 Average Corruption 1 | . . . . . . . . 1 . . . . 1 1 1 1 9 Corruption Purged . | . . . . . . . . . . . . . . . . . . Corruption Blocked . | . . . . . . . . . . . . . . . . . . Effects 51 | . . . . . . . . 2 . . . . 6 21 3 18 1 Message Errors 13 | . . . . . . . . 1 . . . . 4 5 . 3 . Matter Fused 13 | . . . . . . . . . . . . . . 5 1 7 . Heat Flow Errors 5 | . . . . . . . . . . . . . . 1 1 3 . Energy Discharges 11 | . . . . . . . . . . . . . 1 7 . 3 . Data Loss (minor) 6 | . . . . . . . . 1 . . . . 1 1 . 2 1 Data Loss (major) 3 | . . . . . . . . . . . . . . 2 1 . . Overload Shots . | . . . . . . . . . . . . . . . . . . Overflow Damage 392 | . 88 . . . 58 1 65 . . . . . 34 71 41 34 . Projectiles . | . . . . . . . . . . . . . . . . . . Explosions 352 | . 88 . . . 58 1 65 . . . . . 34 71 1 34 . Melee 40 | . . . . . . . . . . . . . . . 40 . . Knockbacks 1 | . . 1 . . . . . . . . . . . . . . . Impact . | . . . . . . . . . . . . . . . . . . Kinetic 1 | . . 1 . . . . . . . . . . . . . . . Secondary . | . . . . . . . . . . . . . . . . . . Self-Inflicted Damage 225 | . . . . . 51 56 . 28 . . . . . 45 21 24 . Shots 9 | . . . . . 2 2 . 1 . . . . . 2 1 1 . Rammed 1 | . . . . . . . . . . . . . . . . . 1 Targets Rammed 2 | . . . . . . 1 . . . . . . . . . . 1 Kicked . | . . . . . . . . . . . . . . . . . . Crushed 1 | . . . . . . 1 . . . . . . . . . . . Highest Temperature 312 | 18 312 27 . . 25 28 26 94 . . . . 26 159 188 275 12 Average Temperature 40 | 8 54 16 . . 7 10 7 25 . . . . 10 28 107 91 4 Received Heat Transfer 878 | . 150 . . . 54 114 . 205 . . . . . 27 20 20 288 Siege Activations 3 | . . . . . . . . . . . . . . . . . 3 Total Turns 25 | . . . . . . . . . . . . . . . . . 25 Longest Duration 21 | . . . . . . . . . . . . . . . . . 21 Robots Corrupted 1 | . . . . . . . . . . . . . . . . . 1 Combat Hostiles . | . . . . . . . . . . . . . . . . . . Parts Fried 1 | . . . . . . . . . . . . . . . . . 1 Impact Corruptions . | . . . . . . . . . . . . . . . . . . Robots Melted . | . . . . . . . . . . . . . . . . . . Combat Hostiles . | . . . . . . . . . . . . . . . . . . Parts Melted 2 | . 2 . . . . . . . . . . . . . . . . Heat Transferred 1907 | 74 1648 . . . 185 . . . . . . . . . . . . Parts Sabotaged 2 | . . . . . . . . . . . . . . . . . 2 Parts Stolen . | . . . . . . . . . . . . . . . . . . Parts Stripped . | . . . . . . . . . . . . . . . . . . Power Chain Reactions . | . . . . . . . . . . . . . . . . . . Missiles Intercepted . | . . . . . . . . . . . . . . . . . . Alert | -11 -10 -10 -10 -9 -8 -8 -7 -7 -6 -6 -5 -5 -5 -5 -5 -5 -4 ------- Run | Jun Mat Min Exi Min Mat Gar Fac Gar Fac DSF Fac Was Fac Gar Fac Gar Fac Peak Influence 2527 | 15 395 94 . . 423 1072 1039 2106 1105 948 499 174 192 2527 2058 2301 1944 Initial 1440 | . 9 84 . . . 104 562 713 1105 773 497 174 . 134 1326 1440 1207 Average 910 | 3 232 91 . . 195 650 672 1375 1105 834 497 126 48 1298 1623 1805 1513 Maximum Alert Level 5 | . 1 . . . 2 3 3 5 4 3 2 . . 5 5 5 5 Low Security (%) 21 | 100 18 100 . 100 57 9 . . . . . 100 100 1 . . . Level 1 12 | . 81 . . . 34 9 . . . . . . . 8 . . . Level 2 12 | . . . . . 7 39 64 . . . 100 . . 16 . . . Level 3 14 | . . . . . . 40 35 19 . 100 . . . 23 . . . Level 4 17 | . . . . . . . . 55 100 . . . . 5 63 33 60 Level 5 19 | . . . . . . . . 24 . . . . . 44 36 66 . High Security 1 | . . . . . . . . . . . . . . . . . 39 Max Security . | . . . . . . . . . . . . . . . . . . Squads Dispatched 31 | . 4 . . . . . 3 . . 1 1 . 3 . 4 . 15 Investigation 5 | . 2 . . . . . . . . . . . 2 . . . 1 Extermination 3 | . . . . . . . . . . . 1 . 1 . 1 . . Reinforcement 11 | . 2 . . . . . 1 . . 1 . . . . 1 . 6 Assault 9 | . . . . . . . . . . . . . . . 1 . 8 Garrison 3 | . . . . . . . 2 . . . . . . . 1 . . Intercept . | . . . . . . . . . . . . . . . . . . Searches Triggered . | . . . . . . . . . . . . . . . . . . Construction Impeded 2 | . . . . . . . . . . . . . . . 1 . 1 Haulers Reinforced 2 | . . . . . . . 1 . . . . . . . . . 1 Active Scanning Responses . | . . . . . . . . . . . . . . . . . . Cargo Convoy Interrupts . | . . . . . . . . . . . . . . . . . . Stealth | -11 -10 -10 -10 -9 -8 -8 -7 -7 -6 -6 -5 -5 -5 -5 -5 -5 -4 --------- Run | Jun Mat Min Exi Min Mat Gar Fac Gar Fac DSF Fac Was Fac Gar Fac Gar Fac Distress Signals 8 | . 1 . . . 1 . . . . . . . . . . . 6 Communications Jammed . | . . . . . . . . . . . . . . . . . . Distress Signals . | . . . . . . . . . . . . . . . . . . Times Spotted 276 | . 29 . . . 15 38 18 37 . 5 1 . 8 32 13 24 56 Peak Tracking Total 23 | . 5 . . . 4 5 5 6 . 2 2 . 1 5 5 5 23 Tactical Retreats 5 | . 3 . . . . . . 1 . . . . . . . 1 . Traps | -11 -10 -10 -10 -9 -8 -8 -7 -7 -6 -6 -5 -5 -5 -5 -5 -5 -4 ------- Run | Jun Mat Min Exi Min Mat Gar Fac Gar Fac DSF Fac Was Fac Gar Fac Gar Fac Traps Triggered 9 | . 6 . . . . . . 1 . . 1 . . . . 1 . Indirectly . | . . . . . . . . . . . . . . . . . . Trap Hack Attempts 173 | . . . . . . 95 . . . . . . . 73 . 5 . Triggered . | . . . . . . . . . . . . . . . . . . Disarmed 7 | . . . . . . 5 . . . . . . . 2 . . . Reprogrammed 15 | . . . . . . 3 . . . . . . . 11 . 1 . Reused . | . . . . . . . . . . . . . . . . . . Traps Extracted . | . . . . . . . . . . . . . . . . . . Installed . | . . . . . . . . . . . . . . . . . . Triggered . | . . . . . . . . . . . . . . . . . . Machines | -11 -10 -10 -10 -9 -8 -8 -7 -7 -6 -6 -5 -5 -5 -5 -5 -5 -4 ---------- Run | Jun Mat Min Exi Min Mat Gar Fac Gar Fac DSF Fac Was Fac Gar Fac Gar Fac Machines Disabled 88 | . 3 . . . 5 4 15 7 . . . . 4 11 8 4 27 Max in Single Turn 6 | . 3 . . . 2 1 6 1 . . . . . 3 2 1 2 Garrison Relay 20 | . . . . . . 4 . 6 . . . . . 6 . 4 . Machines Repaired . | . . . . . . . . . . . . . . . . . . Machines Sabotaged . | . . . . . . . . . . . . . . . . . . Overloaded Fab Kills . | . . . . . . . . . . . . . . . . . . Hacking | -11 -10 -10 -10 -9 -8 -8 -7 -7 -6 -6 -5 -5 -5 -5 -5 -5 -4 --------- Run | Jun Mat Min Exi Min Mat Gar Fac Gar Fac DSF Fac Was Fac Gar Fac Gar Fac Machines Accessed 42 | . 6 . 1 . 9 3 3 2 1 . 2 . 6 2 4 2 1 Terminals 31 | . 4 . . . 8 3 2 2 1 . 1 . 2 2 3 2 1 Fabricators 1 | . . . . . . . . . . . . . 1 . . . . Repair Stations 2 | . . . . . . . . . . . . . 2 . . . . Recycling Units 3 | . 2 . . . . . . . . . 1 . . . . . . Scanalyzers . | . . . . . . . . . . . . . . . . . . Garrison Access 4 | . . . . . 1 . 1 . . . . . 1 . 1 . . Total Hacks 117 | . 22 . 1 . 36 6 7 3 2 . 3 . 16 4 6 7 4 Successful 61 | . 8 . 1 . 20 2 4 2 1 . 2 . 10 2 4 2 3 Failed 56 | . 14 . . . 16 4 3 1 1 . 1 . 6 2 2 5 1 Catastrophic 11 | . 2 . . . 4 2 1 . . . . . . . 1 1 . Database Lockouts . | . . . . . . . . . . . . . . . . . . Manual 53 | . 11 . 1 . 18 1 6 . . . 2 . 6 1 3 2 2 Terminals 92 | . 12 . . . 35 6 6 3 2 . 2 . 6 4 5 7 4 Fabricators 4 | . . . . . . . . . . . . . 4 . . . . Repair Stations 5 | . . . . . . . . . . . . . 5 . . . . Recycling Units 11 | . 10 . . . . . . . . . 1 . . . . . . Scanalyzers . | . . . . . . . . . . . . . . . . . . Garrison Access 4 | . . . . . 1 . 1 . . . . . 1 . 1 . . Terminal Hacks 29 | . 1 . 1 . 11 2 1 2 1 . . . 2 2 2 2 2 Record 1 | . . . . . . . . . . . . . . . 1 . . Robot Analysis 1 | . 1 . . . . . . . . . . . . . . . . Prototype ID Bank 5 | . . . . . 5 . . . . . . . . . . . . Open DSF 2 | . . . . . . . . . 1 . . . . . 1 . . Branch Access Points 1 | . . . . . 1 . . . . . . . . . . . . Emergency Access Points 4 | . . . . . . . . 1 . . . . 1 1 . 1 . Garrison Index 1 | . . . . . . . 1 . . . . . . . . . . Alert Level 3 | . . . . . 3 . . . . . . . . . . . . Unreport Threat 4 | . . . . . 1 . . . . . . . 1 . . . 2 Reinforcement Status 1 | . . . . . 1 . . . . . . . . . . . . Garrison Registry 1 | . . . . . . 1 . . . . . . . . . . . Patrol Navigation 3 | . . . . . . 1 . 1 . . . . . 1 . . . Security Stations 1 | . . . . . . . . . . . . . . . . 1 . EX-Prototype ID Bank 1 | . . . 1 . . . . . . . . . . . . . . Fabricator Hacks 1 | . . . . . . . . . . . . . 1 . . . . Network Status 1 | . . . . . . . . . . . . . 1 . . . . Repair Station Hacks 3 | . . . . . . . . . . . . . 3 . . . . Scan Component 2 | . . . . . . . . . . . . . 2 . . . . Repair 1 | . . . . . . . . . . . . . 1 . . . . Recycling Unit Hacks 3 | . 2 . . . . . . . . . 1 . . . . . . Report Inventory 1 | . . . . . . . . . . . 1 . . . . . . Retrieve Matter 1 | . 1 . . . . . . . . . . . . . . . . Retrieve Components 1 | . 1 . . . . . . . . . . . . . . . . Scanalyzer . | . . . . . . . . . . . . . . . . . . Garrison Access Hacks 4 | . . . . . 1 . 1 . . . . . 1 . 1 . . Unlock Access 4 | . . . . . 1 . 1 . . . . . 1 . 1 . . Unauthorized Hacks 21 | . 5 . . . 8 . 2 . . . 1 . 3 . 1 . 1 Terminals 19 | . 3 . . . 8 . 2 . . . 1 . 3 . 1 . 1 Botnet 15 | . 2 . . . 6 . 2 . . . 1 . 2 . 1 . 1 Detonate 4 | . 1 . . . 2 . . . . . . . 1 . . . . Fabricators . | . . . . . . . . . . . . . . . . . . Repair Stations . | . . . . . . . . . . . . . . . . . . Recycling Units 2 | . 2 . . . . . . . . . . . . . . . . Recyclers 1 | . 1 . . . . . . . . . . . . . . . . Tunnel 1 | . 1 . . . . . . . . . . . . . . . . Scanalyzers . | . . . . . . . . . . . . . . . . . . Garrison Access . | . . . . . . . . . . . . . . . . . . Data Cores Recovered 1 | . . . . . . . . . . . . . 1 . . . . Used . | . . . . . . . . . . . . . . . . . . Hacking Detections 35 | . 5 . . . 9 3 2 1 . . 2 . 6 2 2 2 1 Full Trace Events 4 | . 1 . . . . . . . . . . . 2 . . . 1 Feedback Events 1 | . . . . . . . . . . . . . 1 . . . . Corruption 1 | . . . . . . . . . . . . . 1 . . . . Feedback Blocked . | . . . . . . . . . . . . . . . . . . Robot Schematics Acquired . | . . . . . . . . . . . . . . . . . . Robots Built . | . . . . . . . . . . . . . . . . . . Authchips . | . . . . . . . . . . . . . . . . . . Time . | . . . . . . . . . . . . . . . . . . Total Robot Build Rating . | . . . . . . . . . . . . . . . . . . Part Schematics Acquired . | . . . . . . . . . . . . . . . . . . Parts Built . | . . . . . . . . . . . . . . . . . . Authchips . | . . . . . . . . . . . . . . . . . . Time . | . . . . . . . . . . . . . . . . . . Total Part Build Rating . | . . . . . . . . . . . . . . . . . . Parts Repaired 1 | . . . . . . . . . . . . . 1 . . . . Time 37 | . . . . . . . . . . . . . 37 . . . . Parts Recycled . | . . . . . . . . . . . . . . . . . . Recycled Matter . | . . . . . . . . . . . . . . . . . . Retrieved Matter 232 | . 232 . . . . . . . . . . . . . . . . Retrieved Components 10 | . 10 . . . . . . . . . . . . . . . . Parts Scanalyzed . | . . . . . . . . . . . . . . . . . . Part Schematics Acquired . | . . . . . . . . . . . . . . . . . . Parts Damaged . | . . . . . . . . . . . . . . . . . . Bothacking | -11 -10 -10 -10 -9 -8 -8 -7 -7 -6 -6 -5 -5 -5 -5 -5 -5 -4 ------------ Run | Jun Mat Min Exi Min Mat Gar Fac Gar Fac DSF Fac Was Fac Gar Fac Gar Fac Used RIF Installer 4 | . . . . . . 1 . 1 . . . . . 1 . 1 . Coupler Efficiency 1 | . . . . . . . . . . . . . . . . 1 . Signal Jammer 1 | . . . . . . . . 1 . . . . . . . . . Zone Cloak 1 | . . . . . . . . . . . . . . 1 . . . Robots Hacked 82 | . . . 4 . . 12 4 16 . 2 . . 4 16 . 14 10 Non-combat 3 | . . . 3 . . . . . . . . . . . . . . Combat 79 | . . . 1 . . 12 4 16 . 2 . . 4 16 . 14 10 Robot Hacks Applied 86 | . . . 5 . . 12 4 17 . 2 . . 5 17 . 14 10 parse_system 6 | . . . 5 . . . . 1 . . . . . . . . . find_garrison 1 | . . . . . . . . . . . . . 1 . . . . mark_system 3 | . . . . . . . . . . . . . 1 2 . . . disrupt_area 1 | . . . . . . . . . . . . . . 1 . . . spike_heat 2 | . . . . . . . . . . . . . . 2 . . . disable_weapons 2 | . . . . . . . . . . . . . . 2 . . . reboot_system 2 | . . . . . . . 1 1 . . . . . . . . . overwrite_iff 12 | . . . . . . 2 . 3 . . . . . 1 . 1 5 streamctrl_high 1 | . . . . . . . . 1 . . . . . . . . . formatsys_high 56 | . . . . . . 10 3 11 . 2 . . 3 9 . 13 5 Relay Couplers Released 83 | . . . . . . 18 . 23 . . . . . 22 3 17 . Machine Destruction 80 | . . . . . . 18 . 23 . . . . . 22 . 17 . Programmers 3 | . . . . . . . . . . . . . . . 3 . . Attached 44 | . . . . . . 7 2 8 . 1 . . 2 8 . 9 7 Fabnet Peak Effective % . | . . . . . . . . . . . . . . . . . . Robots Rewired 14 | . . . . . . 3 . . . . . . . 10 . . 1 Allies Hacked . | . . . . . . . . . . . . . . . . . . Hacks Repelled . | . . . . . . . . . . . . . . . . . . Allies | -11 -10 -10 -10 -9 -8 -8 -7 -7 -6 -6 -5 -5 -5 -5 -5 -5 -4 -------- Run | Jun Mat Min Exi Min Mat Gar Fac Gar Fac DSF Fac Was Fac Gar Fac Gar Fac Total Allies 92 | . . . . 3 . 17 3 17 . 2 . . 3 20 . 16 11 Largest Group 16 | . . . . 3 3 9 8 6 6 7 5 4 6 16 14 11 9 Highest-Rated Group 754 | . . . . 40 40 123 142 288 288 378 313 292 364 754 669 630 567 Highest-Rated Ally 148 | . . . . 16 16 25 32 95 95 95 95 95 95 148 148 148 148 Total Orders 6 | . . . . . . 3 3 . . . . . . . . . . STAY 3 | . . . . . . 2 1 . . . . . . . . . . FOLLOW 3 | . . . . . . 1 2 . . . . . . . . . . Ally Attacks 694 | . . . . . 20 67 38 81 . 13 3 . 40 108 64 113 147 Total Damage 21589 | . . . . . 228 1005 538 2392 . 452 60 . 1172 2747 3258 3378 6359 Kills 142 | . . . . . 3 14 6 18 . 7 1 . 7 18 24 16 28 Allies Corrupted 3 | . . . . . . . . 1 . . . . . . 1 . 1 Allies Melted 2 | . . . . . . . . . . . . . . . . 1 1 Intel | -11 -10 -10 -10 -9 -8 -8 -7 -7 -6 -6 -5 -5 -5 -5 -5 -5 -4 ------- Run | Jun Mat Min Exi Min Mat Gar Fac Gar Fac DSF Fac Was Fac Gar Fac Gar Fac Robot Analysis Total 1 | . 1 . . . . . . . . . . . . . . . . Derelict Logs Recovered 3 | . . 2 . 1 . . . . . . . . . . . . . Drone Launches . | . . . . . . . . . . . . . . . . . . Drone Recoveries . | . . . . . . . . . . . . . . . . . . Exploration | -11 -10 -10 -10 -9 -8 -8 -7 -7 -6 -6 -5 -5 -5 -5 -5 -5 -4 ------------- Run | Jun Mat Min Exi Min Mat Gar Fac Gar Fac DSF Fac Was Fac Gar Fac Gar Fac Turns Passed 15884 | 132 1287 386 625 215 1239 1876 585 2263 97 157 284 550 796 2732 456 1618 586 Spaces Moved 8683 | 67 591 233 384 134 613 965 335 1232 63 87 175 358 442 1528 275 952 249 Core 20 | 17 3 . . . . . . . . . . . . . . . . Treads 8663 | 50 588 233 384 134 613 965 335 1232 63 87 175 358 442 1528 275 952 249 Legs . | . . . . . . . . . . . . . . . . . . Wheels . | . . . . . . . . . . . . . . . . . . Hover . | . . . . . . . . . . . . . . . . . . Flight . | . . . . . . . . . . . . . . . . . . Fastest Speed 50 | 50 150 160 160 160 160 160 160 160 152 152 152 152 152 152 152 152 152 Average Speed 156 | 148 160 160 160 160 160 160 160 160 152 152 152 152 152 152 152 152 155 Slowest Speed 240 | 200 200 160 160 160 160 160 160 240 152 152 152 152 152 152 152 152 165 Overloaded Moves . | . . . . . . . . . . . . . . . . . . Propulsion Burnouts . | . . . . . . . . . . . . . . . . . . Robots Hopped . | . . . . . . . . . . . . . . . . . . Cave-ins Triggered . | . . . . . . . . . . . . . . . . . . Exploration Rate (%) 49 | 5 86 50 71 35 50 86 13 95 1 80 5 96 10 95 9 92 10 Regions Visited 17 Branch Regions 3 Pre-discovered Areas 2 | . 1 . . 1 . . . . . . . . . . . . . Known Exits Taken 5 | . . . . . 1 . 1 . 1 . . . 1 . 1 . . Unknown Exits Taken 5 | 1 1 1 1 1 . . . . . . . . . . . . . Scrap Searched 3 | . . 1 . 2 . . . . . . . . . . . . . Spaces Dug 26 | . . . . . 7 . . 1 . . . . 6 5 3 2 2 Terrain Destroyed 595 | . 30 . . . 119 24 27 29 . . . . 66 170 47 37 46 Melee 26 | . . . . . 7 . . 1 . . . . 6 5 3 2 2 Projectile 2 | . . . . . 1 1 . . . . . . . . . . . AOE 567 | . 30 . . . 111 23 27 28 . . . . 60 165 44 35 44 Terrain Rammed . | . . . . . . . . . . . . . . . . . . Walls Destroyed . | . . . . . . . . . . . . . . . . . . Machines Disabled . | . . . . . . . . . . . . . . . . . . Actions | -11 -10 -10 -10 -9 -8 -8 -7 -7 -6 -6 -5 -5 -5 -5 -5 -5 -4 --------- Run | Jun Mat Min Exi Min Mat Gar Fac Gar Fac DSF Fac Was Fac Gar Fac Gar Fac Total 10371 | 89 810 240 392 135 797 1239 372 1425 64 105 195 365 545 1834 297 1078 389 Wait 353 | . 46 . . . 59 28 10 15 . 1 10 . 59 41 1 20 63 Move 8669 | 66 590 232 383 133 613 964 335 1231 62 86 175 357 442 1526 274 951 249 Hop . | . . . . . . . . . . . . . . . . . . Pick Up 175 | 8 39 2 1 1 22 20 3 28 . 3 4 3 4 19 3 12 3 Fast Attach 44 | 7 16 . . . 2 1 . 1 . . 1 . 4 7 . . 5 Attach 55 | 2 1 . . . 4 3 3 8 2 1 1 . 1 9 2 7 11 Detach 2 | 1 . . . . 1 . . . . . . . . . . . . Swap 174 | . 12 2 2 . 19 32 5 33 . 4 1 1 7 26 . 23 7 Drop 154 | 1 39 1 1 1 23 22 1 21 . 2 3 4 7 13 3 8 4 Fire 386 | 4 67 3 . . 47 31 15 65 . 8 . . 15 46 10 31 44 Melee 141 | . . . 5 . 7 40 . 23 . . . . 6 39 4 15 2 Ram . | . . . . . . . . . . . . . . . . . . Kick . | . . . . . . . . . . . . . . . . . . Crush 2 | . . . . . . 1 . . . . . . . . . . 1 Escape Stasis 2 | . . . . . . . . . . . . . . . . 2 . Rewire 41 | . . . . . . 2 . . . . . . . 35 . 4 . Trap 173 | . . . . . . 95 . . . . . . . 73 . 5 . Miscellaneous . | . . . . . . . . . . . . . . . . . . Route ------- -11/Junkyard -10/Materials (discovered 2 exits: [*Mat] / [*Min]) -10/Mines (discovered 2 exits: [*Mat] / *Exi) -10/Exiles -9/Mines -8/Materials (discovered 2 exits: *Fac / Gar) -8/Garrison (discovered 4 exits: *Fac x3 / [*Mat]) -7/Factory -7/Garrison (discovered 3 exits: *Fac x3) -6/Factory -6/DSF -5/Factory -5/Waste -5/Factory -5/Garrison (discovered 3 exits: *Fac x3) -5/Factory -5/Garrison (discovered 3 exits: *Fac x3) -4/Factory History --------- Turn | Location | Event 26 | -11/Junkyard | Discovered new exit (range 15) 133 | -11/Junkyard | Entered Materials 349 | -10/Materials | Build established: Mutant 522 | -10/Materials | Discovered new exit (range 16) 1316 | -10/Materials | Discovered new exit (range 14) 1420 | -10/Materials | Entered Mines 1510 | -10/Mines | Learned Materials terminal intel 1511 | -10/Mines | Discovered new exit (range 12) 1541 | -10/Mines | Received a Rocket Launcher from a helpful Derelict 1562 | -10/Mines | Learned Materials emergency access door positions 1625 | -10/Mines | Found a damaged Exp. Sensor Array with a note attached 1628 | -10/Mines | Found Prototype Device 1634 | -10/Mines | Identified Exp. Sensor Array 1710 | -10/Mines | Deemed a non-threat by the Exiles lab entrance 1712 | -10/Mines | Discovered new exit (range 5) 1785 | -10/Mines | Assembled infested the area 1806 | -10/Mines | Entered Exiles 1845 | -10/Exiles | Met 8R-AWN 1880 | -10/Exiles | Met EX-HEX 1939 | -10/Exiles | Met EX-DEC 2093 | -10/Exiles | Build established: Scavenger-Mutant 2112 | -10/Exiles | Met EX-BIN 2191 | -10/Exiles | Aligned with FarCom system 2193 | -10/Exiles | Given EX-Vault access code 2231 | -10/Exiles | Opened EX-Vault 2245 | -10/Exiles | Found Cloak of Protection 2279 | -10/Exiles | Warned to stay clear of 0b10 Research branches 2414 | -10/Exiles | Discovered new exit (range 11) 2431 | -10/Exiles | Left Exiles lab with Cloak of Protection 2431 | -10/Exiles | Entered Mines 2457 | -9/Mines | Assisted by bots powering up and referring to "LRC-V3" 2475 | -9/Mines | Learned location of Zion (-6) 2499 | -9/Mines | Discovered new exit (range 15) 2535 | -9/Mines | Build established: Mutant 2646 | -9/Mines | Entered Materials 2646 | -8/Materials | Accompanied by 3 allies 2646 | -8/Materials | Evolved 4 slots: Utility x4 2648 | -8/Materials | Loaded intel: 12 terminal locations 2940 | -8/Materials | Build established: Scavenger-Mutant 3433 | -8/Materials | Discovered new exit (range 13) 3885 | -8/Materials | Identified exit to Garrison 3885 | -8/Materials | Entered Garrison 3944 | -8/Garrison | Triggered checkpoint 3973 | -8/Garrison | Garrison Relay disabled 4056 | -8/Garrison | Triggered checkpoint 4102 | -8/Garrison | Triggered checkpoint 4131 | -8/Garrison | Discovered new exit (range 5) 4238 | -8/Garrison | Triggered checkpoint 4244 | -8/Garrison | Triggered checkpoint 4314 | -8/Garrison | Triggered checkpoint 4446 | -8/Garrison | Discovered new exit (range 13) 4462 | -8/Garrison | Installed Relay Interface Framework 4502 | -8/Garrison | Triggered checkpoint 4774 | -8/Garrison | Triggered checkpoint 4818 | -8/Garrison | Build established: Bothacker-Mutant 4834 | -8/Garrison | Rescued a captive Derelict 4837 | -8/Garrison | Rescued a captive Derelict 4915 | -8/Garrison | Discovered new exit (range 14) 4995 | -8/Garrison | Garrison Relay disabled 5094 | -8/Garrison | Triggered checkpoint 5180 | -8/Garrison | Discovered new exit (range 8) 5200 | -8/Garrison | Discovered new exit (range 7) 5200 | -8/Garrison | Discovered new exit (range 82) 5200 | -8/Garrison | Discovered new exit (range 44) 5200 | -8/Garrison | Discovered new exit (range 29) 5226 | -8/Garrison | Triggered checkpoint 5315 | -8/Garrison | Garrison Relay disabled 5761 | -8/Garrison | Entered Factory 5761 | -7/Factory | Accompanied by 7 allies 5761 | -7/Factory | Evolved 2 slots: Power x1, Utility x1 6231 | -7/Factory | Garrison activated, responded to threat 6346 | -7/Factory | Identified exit to Garrison 6346 | -7/Factory | Entered Garrison 6346 | -7/Garrison | Accompanied by 3 allies 6462 | -7/Garrison | Triggered checkpoint 6485 | -7/Garrison | Garrison Relay disabled 6640 | -7/Garrison | Triggered checkpoint 6694 | -7/Garrison | Triggered checkpoint 6845 | -7/Garrison | Garrison Relay disabled 6948 | -7/Garrison | Triggered checkpoint 6975 | -7/Garrison | Discovered new exit (range 13) 7035 | -7/Garrison | Spotted B-75 Beast 7035 | -7/Garrison | Spotted B-75 Beast 7228 | -7/Garrison | Triggered checkpoint 7274 | -7/Garrison | Triggered checkpoint 7333 | -7/Garrison | Discovered new exit (range 10) 7368 | -7/Garrison | Triggered checkpoint 7383 | -7/Garrison | Garrison Relay disabled 7543 | -7/Garrison | Discovered new exit (range 10) 7567 | -7/Garrison | Found embedded Infiltrators 7656 | -7/Garrison | Triggered checkpoint 7719 | -7/Garrison | Garrison Relay disabled 7964 | -7/Garrison | Expanded RIF knowledge: Signal Jamming 8428 | -7/Garrison | Garrison Relay disabled 8609 | -7/Garrison | Entered Factory 8609 | -6/Factory | Accompanied by 6 allies 8609 | -6/Factory | Evolved 2 slots: Propulsion x1, Utility x1 8627 | -6/Factory | Identified exit to DSF 8706 | -6/Factory | Entered DSF 8706 | -6/DSF | Accompanied by 6 allies 8746 | -6/DSF | Additional patrols routed to DSF 8815 | -6/DSF | Discovered new exit (range 16) 8863 | -6/DSF | Entered Factory 8863 | -5/Factory | Accompanied by 5 allies 8863 | -5/Factory | Evolved 2 slots: Utility x1, Weapon x1 9147 | -5/Factory | Sucked down chute 9147 | -5/Factory | Entered Waste 9147 | -5/Waste | The area was eerily silent 9185 | -5/Waste | 2 allies followed down the chute 9250 | -5/Waste | 2 allies followed down the chute 9303 | -5/Waste | Discovered new exit (range 16) 9697 | -5/Waste | Entered Factory 9697 | -5/Factory | Accompanied by 4 allies 10003 | -5/Factory | Repaired Adv. Heavy Siege Treads 10491 | -5/Factory | Identified exit to Garrison 10493 | -5/Factory | Entered Garrison 10493 | -5/Garrison | Accompanied by 6 allies 10688 | -5/Garrison | Triggered checkpoint 10708 | -5/Garrison | Triggered checkpoint 10764 | -5/Garrison | Triggered checkpoint 10765 | -5/Garrison | Garrison Relay disabled 10890 | -5/Garrison | Build established: Commander-Mutant 10893 | -5/Garrison | Triggered checkpoint 10893 | -5/Garrison | Triggered checkpoint 10997 | -5/Garrison | Spotted B-75 Beast 10997 | -5/Garrison | Spotted B-75 Beast 11032 | -5/Garrison | Discovered new exit (range 10) 11152 | -5/Garrison | Discovered new exit (range 10) 11222 | -5/Garrison | Triggered checkpoint 11262 | -5/Garrison | Garrison Relay disabled 11428 | -5/Garrison | Triggered checkpoint 11558 | -5/Garrison | Garrison Relay disabled 11736 | -5/Garrison | Triggered checkpoint 11743 | -5/Garrison | Discovered new exit (range 15) 11857 | -5/Garrison | Triggered checkpoint 11906 | -5/Garrison | Triggered checkpoint 11979 | -5/Garrison | Garrison Relay disabled 12077 | -5/Garrison | Found Prototype Device 12077 | -5/Garrison | Identified Active Sensor Suite 12138 | -5/Garrison | Garrison Relay disabled 12420 | -5/Garrison | Expanded RIF knowledge: Zone Cloak 12439 | -5/Garrison | Build established: Bothacker-Mutant 12500 | -5/Garrison | Triggered checkpoint 12526 | -5/Garrison | Triggered checkpoint 12816 | -5/Garrison | Spotted Executioner 12899 | -5/Garrison | Build established: Commander-Mutant 12968 | -5/Garrison | Allies destroyed B-75 Beast 12972 | -5/Garrison | Rewired B-90 Cyclops 12985 | -5/Garrison | Allies destroyed B-75 Beast 13223 | -5/Garrison | Build established: Bothacker-Mutant 13225 | -5/Garrison | Entered Factory 13225 | -5/Factory | Accompanied by 14 allies 13251 | -5/Factory | Identified exit to DSF 13525 | -5/Factory | First assault squad dispatched 13633 | -5/Factory | Garrison activated, responded to threat 13676 | -5/Factory | Identified exit to Garrison 13681 | -5/Factory | Entered Garrison 13681 | -5/Garrison | Accompanied by 1 ally 13737 | -5/Garrison | Expanded RIF knowledge: Coupler Efficiency 13786 | -5/Garrison | Triggered checkpoint 13812 | -5/Garrison | Triggered checkpoint 13824 | -5/Garrison | Triggered checkpoint 13881 | -5/Garrison | Discovered new exit (range 15) 13910 | -5/Garrison | Found embedded Infiltrators 13963 | -5/Garrison | Garrison Relay disabled 14046 | -5/Garrison | Build established: Botlord-Mutant 14158 | -5/Garrison | Triggered checkpoint 14270 | -5/Garrison | Triggered checkpoint 14270 | -5/Garrison | Garrison Relay disabled 14332 | -5/Garrison | Learned Factory security intel 14447 | -5/Garrison | Discovered new exit (range 13) 14536 | -5/Garrison | Triggered checkpoint 14714 | -5/Garrison | Discovered new exit (range 14) 14786 | -5/Garrison | Triggered checkpoint 14825 | -5/Garrison | Garrison Relay disabled 14855 | -5/Garrison | Spotted Striker 14857 | -5/Garrison | Spotted Striker 14873 | -5/Garrison | Allies destroyed Striker 14877 | -5/Garrison | Allies destroyed Striker 15032 | -5/Garrison | Triggered checkpoint 15063 | -5/Garrison | Garrison Relay disabled 15299 | -5/Garrison | Entered Factory 15299 | -4/Factory | Accompanied by 8 allies 15299 | -4/Factory | Evolved 2 slots: Utility x2 15656 | -4/Factory | High security lockdown imminent 15736 | -4/Factory | High security lockdown engaged 15880 | -4/Factory | Core integrity fell below 50% 15883 | -4/Factory | Core integrity fell below 20% 15885 | -4/Factory | Destroyed by H-77 Assassin with Coil Gun Last Messages --------------- 15876_ Dropped Arm. Medium Treads. 15876_ Relay Coupler [Swarmer] destroyed. 15876_ Adv. Heat Sink destroyed. 15876_ Cesium-ion Thruster destroyed. 15878_ Imp. Remote Datajack destroyed. 15878_ Relay Coupler [Specialist] destroyed. 15878_ Cesium-ion Thruster destroyed. 15878_ System corrupted by crushing effect (+5). 15878_ System corrupted by crushing effect (+4). 15879_ Penetrated by Slug. 15879_ Slug penetrates Wall. 15880_ System corrupted: Component data lost. 15880_ Penetrated by Slug. 15883_ Slug penetrates Wall. 15884_ M-36 Artificer repairs G-67 Veteran. 15885_ Dropped Lrg. Storage Unit. 15885_ Dropped Energy Well. 15885_ G-67 Veteran suffers critical hit (Destroy). 15885_ Penetrated by Slug. [Achievement: Tester] Map ----- +----------------------------------------------------+ | ?????????????????????????????????????????????????? | | ?????????????????????????????????????????????????? | | ?????????????????????????????????????????????????? | | ?????????????????????????????????????????????????? | | ?????????????????????????????????????????????????? | | ?????????????????????????????????????????????????? | | ?????????????????????????????????????????????????? | | ?????????????????????????????????????????????????? | | ?????????????????????????????????????????????????? | | ?????????????????????????????????????????????????? | | ?????????????????????????????????????????????????? | | ?????????????????????????????????????????????????? | | ??????????? ?????????????????????????????????????? | | ???????????"""??#????????????????????????????????? | | ???????????""" ?????????????????????????????????? | | ?????????? """ ??????????????????????????????????? | | ?????????? ???????????????????????????????????? | | ?????????? ????????????????????????????????????? | | ##########+####??????????????????????????????????? | | !!! #??????????????????????????????????? | | *!!! % % #############??????????????????????? | | !=%![ %! # #??????????????????????? | | =!=!%% % % # g = #??????????????????????? | | = |%% # g """ !*=#??????????????????????? | | # #"## % # g""""" /!!#??????????????????????? | | ## # " " gg%=@#??????????????????????? | | #### % %#! g ghb!#?##???????????????????? | | """" #?## %;%*g bgg## #???????????????????? | | """" ###; !;;+#####;# m ######??????????????? | | """" ## ; = #???# g !#??????????????? | | " # " = #???; g #??????????????? | | " * % ## hg = [% # """ ?????????? | | % [%] !### ![g[ =% """ ?????????? | | !*=% * ! % [ = %!i%% ?????????? | | [%== " * " """ #????????? | | %[% "% """ #????????? | | % # """??????????? | | %# ??????????? | | ##"## # ?????????? | | #### # ?????????? | | ???# # ######????????? | | ???# ## # # # #?????????????? | | ? ""???#+## # ????????????? | | ? " ?????? #" ???????????? | | ?? " ????? #" ???????????? | | ?? ?????"" """"""" #???????????????? | | ?? ??????"" """"""? #???????????????? | | ??? ?? ?????????? ????????????????????????? | | ??? ??????????????? ????????????????????????? | | ????? ????????????????????????????????????????? | +----------------------------------------------------+ Best States ------------- Heat Dissipation 62 Energy Generation 37 Energy Capacity 745 Matter Stores 450 Matter Capacity 600 Sight Range 20 Robot Scan Range 20 Terrain Scan Density 10 Cloak Strength 5 Additional Mass Support 6 Armor Coverage 450 Resistance: EX 50 Point Defense Rating 80 Evasion (%) 50 Targeting Accuracy 8 Recoil Reduction 3 Offensive Hacking 24 Relay Coupler Types 4 Relay Coupler Value 150 Authchip Count 2 Item Schematics ----------------- None Robot Schematics ------------------ None Fabricated ------------ Nothing Alien Tech Used ----------------- None Achievements -------------- Factory Defaults Hehehe Tester Challenges ------------ None Game ------ Seed ProtonCombatConstruct Manual? 0 Play Time 03:59:05 Cumulative 61.0 hours Start 2023.11.24 @ 22:55:44 End 2023.11.26 @ 03:05:53 Sessions 6 Manual Loads 0 Difficulty Rogue Special Mode None Game No. 20 Rogue 20 Adventurer 0 Explorer 0 Win Type - Total 0 Types 0/0/0/0/0/0/0/0/0 Lore% 34 Gallery% 50 Achievement% 45 Wizard Run 0 Options --------- ASCII 0 Keyboard 0 Movement Mouse Keybinds 0 Fullscreen 2 Font 24/Smallcaps Map View 76x50 Tactical HUD 1 Map Filters NONE Filters NONE Steam 1 RUN: fb8fe637-f115-4e9e-a836-8c5e59e1d5a8